bitfinex-derivatives/quotes_SOLF0:USTF0_20241026
["timestamp","ask_amount","ask_price","bid_price","bid_amount"]
[1729931465778,8.1758,168.14,168.09,8.2390885]
[1729931466085,4.34,168.14,168.11,8.2390885]
[1729931467886,4.34,168.14,168.06,4.34]
[1729931468075,8.2390885,168.11,168.05,2.9784]
[1729931468279,4.34,168.1,168.03,5.6169]
[1729931468688,4.34,168.1,168.03,8.5955]
[1729931468890,17.20898771,168.1,168.03,1.2769]
[1729931469083,2.9781,168.07,168.03,1.2769]
[1729931469286,2.9781,168.07,168.0,12.86898771]
[1729931469486,17.20898771,168.1,168.0,12.86898771]
[1729931469681,2.9779,168.08,168.01,2.9791]
[1729931470087,17.20898771,168.1,168.01,2.9791]
[1729931471082,2.9779,168.08,168.01,2.9791]
[1729931471285,2.9779,168.08,168.02,2.9789]
[1729931472687,7.3176,168.1,168.03,2.9787]
[1729931474786,4.34,168.1,168.05,2.9782]
[1729931475786,2.9777,168.09,168.03,2.9786]
[1729931476589,2.9781,168.07,168.01,2.979]
[1729931476789,17.20898771,168.1,168.0,2.5161]
[1729931476790,17.20898771,168.1,168.0,15.38508771]
[1729931476991,17.20898771,168.1,168.0,12.86898771]
[1729931477491,2.978,168.08,168.02,2.9789]
[1729931477697,17.20898771,168.1,168.02,2.9789]
[1729931478797,2.9779,168.08,168.02,2.9789]
[1729931479199,2.9779,168.08,168.02,15.84788771]
[1729931480398,17.20898771,168.1,168.02,12.86898771]
[1729931480604,2.9781,168.07,168.02,12.86898771]
[1729931481904,17.20898771,168.1,168.02,12.86898771]
[1729931482104,2.9779,168.08,168.02,15.84778771]
[1729931485012,17.20898771,168.1,168.02,12.86898771]
[1729931485204,17.20898771,168.1,168.03,2.9787]
[1729931485205,2.9777,168.09,168.03,2.9787]
[1729931486721,2.9774,168.11,168.05,2.9783]
[1729931487012,4.52,168.09,168.05,2.9783]
[1729931488113,2.9774,168.11,168.05,2.9783]
[1729931488414,4.52,168.1,168.05,2.9783]
[1729931489220,5.7548,168.1,168.05,2.9783]
[1729931489518,8.2341,168.1,168.05,2.9783]
[1729931491912,2.9777,168.09,168.04,12.86898771]
[1729931492114,2.9777,168.09,168.03,2.9786]
[1729931492311,2.9781,168.07,168.01,2.9791]
[1729931492611,2.9781,168.07,168.0,12.86898771]
[1729931492820,4.52,168.06,167.99,4.52]
[1729931493005,4.52,168.06,167.97,12.86898771]
[1729931494535,2.9786,168.04,167.98,2.9795]
[1729931494916,3.9406,168.03,167.98,2.9795]
[1729931498017,3.9406,168.03,167.99,2.9794]
[1729931499415,3.9406,168.03,168.0,12.86898771]
[1729931499622,3.9406,168.03,168.02,2.9789]
[1729931500418,3.9406,168.03,168.0,12.86898771]
[1729931500621,3.9406,168.03,168.01,2.9791]
[1729931500920,3.9406,168.03,168.0,12.86898771]
[1729931501322,3.9406,168.03,168.0,15.84808771]
[1729931502119,4.52,168.05,168.01,2.979]
[1729931503824,2.9782,168.06,168.01,2.979]
[1729931504521,8.3395,168.08,168.0,12.86898771]
[1729931504720,3.8195,168.08,168.0,12.86898771]
[1729931505626,3.8195,168.08,168.01,2.9789]
[1729931505627,2.9781,168.07,168.01,2.9789]
[1729931505821,3.8195,168.08,168.01,2.9789]
[1729931506222,15.03449008,168.08,168.03,8.23709008]
[1729931509621,19.45449008,168.08,168.03,8.23709008]
[1729931510723,8.23709008,168.07,167.96,4.52]
[1729931510919,8.23709008,168.06,168.0,11.21629008]
[1729931511626,8.23709008,168.06,168.0,8.23709008]
[1729931512025,8.23709008,168.04,167.99,8.23709008]
[1729931512427,8.23709008,168.04,168.0,2.9793]
[1729931514227,12.65709008,168.04,168.0,2.9793]
[1729931518633,12.65709008,168.04,167.95,4.42]
[1729931518634,4.42,168.04,168.01,8.23709008]
[1729931518830,4.42,168.04,168.01,11.21619008]
[1729931519427,4.42,168.07,167.95,4.42]
[1729931519632,4.42,168.07,168.03,8.23709008]
[1729931521231,7.3982,168.07,168.03,8.23709008]
[1729931523848,16.47659008,168.08,168.03,11.21579008]
[1729931524434,16.47659008,168.08,168.03,8.23709008]
[1729931526235,16.47659008,168.08,168.03,11.21579008]
[1729931526832,16.47659008,168.08,168.03,8.23709008]
[1729931527038,19.45449008,168.08,168.03,8.23709008]
[1729931527441,8.23709008,168.06,168.02,2.9789]
[1729931532745,8.23709008,168.06,168.03,2.9787]
[1729931533140,2.5889,168.08,168.04,11.21549008]
[1729931533341,7.0089,168.08,168.04,11.21549008]
[1729931536044,8.23709008,168.07,167.98,2.511]
[1729931536251,8.23709008,168.06,168.02,2.9788]
[1729931536443,8.23709008,168.06,168.01,8.23709008]
[1729931536444,6.9089,168.08,168.03,12.90236135]
[1729931536750,15.14599008,168.08,168.04,1.48972544]
[1729931536949,15.14599008,168.08,168.03,8.23709008]
[1729931537152,15.14599008,168.08,168.04,1.48972452]
[1729931537450,15.14599008,168.08,168.04,2.9785]
[1729931540149,8.23709008,168.07,168.04,2.9785]
[1729931544555,8.23709008,168.07,168.02,11.21589008]
[1729931544753,8.23709008,168.07,168.03,4.66529148]
[1729931544955,8.23709008,168.07,168.04,4.66529148]
[1729931545248,8.23709008,168.07,168.02,11.21589008]
[1729931545455,8.23709008,168.07,168.03,4.66546051]
[1729931545650,8.23709008,168.07,168.04,4.66546051]
[1729931545851,8.23709008,168.07,168.05,1.48970016]
[1729931546052,8.23709008,168.07,168.03,2.9787]
[1729931546248,8.23709008,168.07,168.04,4.66526424]
[1729931546450,8.23709008,168.07,168.05,1.48966308]
[1729931546652,8.23709008,168.07,168.03,2.9787]
[1729931546854,8.23709008,168.07,168.04,4.66530052]
[1729931547055,8.23709008,168.07,168.05,4.66518471]
[1729931547255,8.23709008,168.07,168.03,2.9787]
[1729931547557,8.23709008,168.07,168.04,4.66503725]
[1729931547746,8.23709008,168.07,168.03,2.9787]
[1729931547951,8.23709008,168.07,168.05,1.48965234]
[1729931548152,8.23709008,168.07,168.03,2.9787]
[1729931548352,8.23709008,168.07,168.04,4.66505347]
[1729931548551,8.23709008,168.07,168.05,4.66505347]
[1729931548747,8.23709008,168.07,168.03,2.9787]
[1729931548954,8.23709008,168.07,168.04,4.6625173]
[1729931549254,8.23709008,168.07,168.05,4.6625173]
[1729931549450,8.23709008,168.07,168.03,2.9787]
[1729931549651,4.32,168.08,168.03,2.9787]
[1729931549847,8.23709008,168.07,168.04,4.66171979]
[1729931550053,8.23709008,168.07,168.05,4.66171979]
[1729931550253,8.23709008,168.07,168.03,2.9787]
[1729931550453,8.23709008,168.07,168.04,4.66155952]
[1729931550653,8.23709008,168.07,168.05,4.66155952]
[1729931550854,8.23709008,168.07,168.03,2.9787]
[1729931551055,8.23709008,168.07,168.04,4.66155811]
[1729931551360,8.23709008,168.07,168.05,4.66155811]
[1729931551557,8.23709008,168.11,168.07,2.978]
[1729931551757,9.55569008,168.13,168.08,8.23709008]
[1729931551959,12.55709008,168.13,168.08,8.23709008]
[1729931552358,8.23709008,168.13,168.08,8.23709008]
[1729931552559,12.55709008,168.13,168.08,8.23709008]
[1729931553258,12.55709008,168.13,168.09,2.9776]
[1729931553465,12.55709008,168.13,168.09,11.21469008]
[1729931555060,4.32,168.13,168.09,11.21469008]
[1729931558360,12.55709008,168.13,168.09,2.9776]
[1729931562772,12.55709008,168.13,168.09,11.21469008]
[1729931566171,12.55709008,168.13,168.04,2.5476]
[1729931566367,8.23709008,168.09,168.06,2.9782]
[1729931566570,8.23709008,168.08,168.0,4.32]
[1729931566772,8.23709008,168.08,168.02,12.88938751]
[1729931566967,8.23709008,168.08,168.03,4.65229743]
[1729931567168,8.23709008,168.08,168.02,8.23709008]
[1729931567367,8.23709008,168.08,168.04,2.9785]
[1729931571472,8.23709008,168.08,168.05,2.9784]
[1729931575674,8.23709008,168.08,168.03,8.23709008]
[1729931575875,8.23709008,168.08,168.04,1.48948913]
[1729931576074,8.23709008,168.08,168.03,8.23709008]
[1729931576279,8.23709008,168.08,168.04,1.48949067]
[1729931576480,8.23709008,168.08,168.03,8.23709008]
[1729931576679,8.23709008,168.08,168.04,1.48949067]
[1729931576880,8.23709008,168.08,168.03,8.23709008]
[1729931577082,8.23709008,168.08,168.04,1.48949067]
[1729931577278,8.23709008,168.08,168.05,2.9783]
[1729931579185,8.23709008,168.08,168.06,2.9782]
[1729931579382,8.23709008,168.08,168.03,8.23709008]
[1729931579586,8.23709008,168.08,168.04,1.48949063]
[1729931579883,8.23709008,168.08,168.03,8.23709008]
[1729931580084,8.23709008,168.08,168.04,1.48949063]
[1729931580281,4.32,168.09,168.06,2.9782]
[1729931582885,12.55709008,168.1,168.06,2.9782]
[1729931583787,8.23709008,168.08,168.06,2.9782]
[1729931585188,8.23709008,168.07,168.04,2.9786]
[1729931588287,4.32,168.08,168.04,2.9786]
[1729931588586,8.23709008,168.07,168.04,2.9786]
[1729931590176,8.23709008,168.05,167.98,4.32]
[1729931590490,8.23709008,168.05,167.99,4.65527797]
[1729931590683,3.9071,168.07,168.0,4.65527797]
[1729931590891,8.23709008,168.04,168.01,1.48977278]
[1729931591083,8.23709008,168.04,167.98,8.23709008]
[1729931591285,8.23709008,168.04,168.01,2.9789]
[1729931591586,12.14419008,168.07,168.02,8.23709008]
[1729931591780,4.32,168.07,168.02,8.23709008]
[1729931591983,4.32,168.07,168.04,2.9784]
[1729931592284,12.55709008,168.07,168.04,2.9784]
[1729931593383,8.23709008,168.07,168.05,2.9783]
[1729931596188,4.32,168.08,168.06,2.9782]
[1729931596392,8.23709008,168.12,168.06,8.23709008]
[1729931596593,4.32,168.12,168.07,8.23709008]
[1729931596795,12.55709008,168.13,168.07,8.23709008]
[1729931598288,12.55709008,168.13,168.09,2.9775]
[1729931601301,12.55709008,168.13,168.1,2.9775]
[1729931601482,12.06739008,168.16,168.1,8.23709008]
[1729931601689,16.38739008,168.16,168.1,8.23709008]
[1729931601888,12.06739008,168.16,168.1,8.23709008]
[1729931603291,12.06739008,168.16,168.12,2.9771]
[1729931605399,12.06739008,168.16,168.1,8.23709008]
[1729931605698,12.06739008,168.16,168.11,2.9773]
[1729931613202,8.23709008,168.13,168.08,2.9778]
[1729931613405,8.23709008,168.11,168.08,2.9778]
[1729931619411,8.23709008,168.11,168.01,3.7788]
[1729931619604,8.23709008,168.06,168.02,4.65520447]
[1729931619808,8.23709008,168.06,168.03,4.65520447]
[1729931620109,7.28510951,168.09,168.04,4.65520447]
[1729931620314,8.23709008,168.07,168.01,10.76089008]
[1729931620510,8.23709008,168.07,168.02,4.6567772]
[1729931620809,8.23709008,168.07,168.03,4.6567772]
[1729931621013,8.23709008,168.07,168.04,1.48958932]
[1729931621215,8.23709008,168.07,168.03,2.9786]
[1729931621411,8.23709008,168.07,168.04,1.48964358]
[1729931621614,8.23709008,168.07,168.03,2.9786]
[1729931621813,8.23709008,168.07,168.04,1.48964359]
[1729931622015,8.23709008,168.07,168.03,2.9786]
[1729931622211,8.23709008,168.07,168.04,1.48964512]
[1729931622514,8.23709008,168.07,168.03,2.9786]
[1729931622715,8.23709008,168.07,168.04,1.48964449]
[1729931622912,8.23709008,168.07,168.03,2.9786]
[1729931623117,8.23709008,168.07,168.04,1.48964456]
[1729931623314,8.23709008,168.07,168.03,2.9786]
[1729931624425,8.23709008,168.07,168.01,8.23709008]
[1729931624613,8.23709008,168.07,168.04,2.9784]
[1729931627322,8.23709008,168.05,168.02,2.9789]
[1729931627522,8.23709008,168.05,168.03,1.48966178]
[1729931627718,8.23709008,168.05,168.02,2.9789]
[1729931632331,8.23709008,168.05,168.0,8.23709008]
[1729931632524,8.23709008,168.05,168.03,2.9787]
[1729931635122,3.6688,168.1,168.03,8.23709008]
[1729931635324,8.23709008,168.09,168.04,8.23709008]
[1729931635524,8.23709008,168.09,167.99,1.2609]
[1729931635525,8.23709008,168.12,168.07,8.23709008]
[1729931635820,12.55709008,168.12,168.07,8.23709008]
[1729931637326,12.55709008,168.12,168.08,2.9778]
[1729931639334,12.55709008,168.12,168.07,8.23709008]
[1729931639536,8.23709008,168.12,168.07,8.23709008]
[1729931640234,8.23709008,168.12,168.08,2.9778]
[1729931640829,4.32,168.13,168.06,8.23709008]
[1729931641033,8.23709008,168.11,168.09,2.9775]
[1729931645136,8.23709008,168.1,168.02,4.32]
[1729931645449,8.23709008,168.08,168.07,2.9779]
[1729931648930,12.55709008,168.08,168.03,2.9786]
[1729931649136,8.23709008,168.05,168.04,4.65442959]
[1729931649950,8.23709008,168.05,168.04,1.48957325]
[1729931650249,8.23709008,168.05,168.04,4.46807325]
[1729931650451,8.23709008,168.05,168.04,7.63312182]
[1729931650748,8.23709008,168.05,168.04,4.46807325]
[1729931652151,8.23709008,168.09,168.04,9.72666546]
[1729931652453,8.23709008,168.09,168.05,1.48955068]
[1729931652755,8.23709008,168.08,168.06,2.978]
[1729931654056,8.23709008,168.08,168.03,8.23709008]
[1729931654257,8.23709008,168.08,168.07,2.978]
[1729931660861,4.32,168.11,168.07,2.978]
[1729931661156,8.23709008,168.08,168.07,2.978]
[1729931669563,8.23709008,168.08,168.01,12.55709008]
[1729931669764,8.23709008,168.07,168.05,2.9782]
[1729931673572,8.23709008,168.07,168.01,4.32]
[1729931673771,8.23709008,168.07,168.06,2.9782]
[1729931676168,8.23709008,168.07,168.04,2.9784]
[1729931676371,8.23709008,168.05,168.04,2.9784]
[1729931676672,8.23709008,168.05,168.04,7.63259633]
[1729931676869,8.23709008,168.05,168.04,7.63262258]
[1729931678373,4.32,168.09,168.04,4.65422258]
[1729931678679,8.23709008,168.07,168.06,2.9781]
[1729931680173,8.23709008,168.08,168.07,2.9779]
[1729931683176,4.32,168.12,168.07,1.48948615]
[1729931683479,4.32,168.12,168.08,4.65378224]
[1729931683480,8.23709008,168.12,168.08,4.65378224]
[1729931683679,8.23709008,168.12,168.09,1.48948615]
[1729931683880,8.23709008,168.12,168.06,8.23709008]
[1729931684081,8.23709008,168.11,168.07,4.65368622]
[1729931684270,8.23709008,168.11,168.06,8.23709008]
[1729931684271,8.23709008,168.11,168.08,4.65368622]
[1729931684473,4.32,168.15,168.09,2.9777]
[1729931684679,8.23709008,168.1,168.05,1.3094]
[1729931684878,8.23709008,168.08,168.06,4.65391206]
[1729931685186,8.23709008,168.08,168.07,4.65391206]
[1729931686380,8.23709008,168.08,168.07,7.63181206]
[1729931689188,8.23709008,168.08,168.07,2.9779]
[1729931692694,8.23709008,168.08,168.07,4.46740844]
[1729931692891,8.23709008,168.08,168.07,2.9779]
[1729931694492,8.23709008,168.08,168.07,4.46740817]
[1729931695198,8.23709008,168.08,168.07,2.9779]
[1729931695390,8.23709008,168.08,168.07,4.46740817]
[1729931695590,8.23709008,168.08,168.07,2.9779]
[1729931695795,8.23709008,168.08,168.07,4.46740817]
[1729931696102,8.23709008,168.08,168.07,2.9779]
[1729931696600,4.32,168.11,168.07,4.46740969]
[1729931696794,8.23709008,168.08,168.07,2.9779]
[1729931696996,8.23709008,168.08,168.07,4.46740817]
[1729931697802,8.23709008,168.08,168.07,1.48950817]
[1729931698414,8.23709008,168.08,168.06,2.9782]
[1729931699205,8.23709008,168.08,168.07,1.48953309]
[1729931699407,8.23709008,168.08,168.04,169.04620707]
[1729931699608,8.23709008,168.05,168.04,172.02480707]
[1729931699810,8.23709008,168.05,168.04,176.68041319]
[1729931700304,8.23709008,168.05,168.02,2.9788]
[1729931700513,8.23709008,168.03,168.02,2.9788]
[1729931711114,8.23709008,168.03,167.97,4.32]
[1729931711314,8.23709008,168.01,167.97,4.32]
[1729931712309,8.23709008,168.01,168.0,2.9793]
[1729931712509,8.23709008,168.01,168.0,7.60987603]
[1729931713112,8.23709008,168.01,168.0,2.9793]
[1729931713308,8.23709008,168.01,168.0,7.60966038]
[1729931715215,8.23709008,168.01,168.0,4.63036038]
[1729931715411,8.23709008,168.01,167.94,4.32]
[1729931715617,8.23709008,167.98,167.95,4.63147701]
[1729931715818,8.23709008,167.98,167.97,2.9798]
[1729931716020,8.23709008,167.98,167.97,7.61127701]
[1729931716918,8.23709008,167.98,167.97,2.9798]
[1729931717319,8.23709008,167.98,167.97,7.61027872]
[1729931718024,8.23709008,167.98,167.97,4.63047872]
[1729931718525,8.23709008,167.98,167.97,3.14036899]
[1729931718714,8.23709008,167.98,167.97,4.63049748]
[1729931718915,8.23709008,167.98,167.97,7.61029748]
[1729931719314,8.23709008,167.98,167.97,4.46992849]
[1729931720629,8.23709008,167.98,167.97,2.9798]
[1729931720825,8.23709008,167.98,167.97,4.46993139]
[1729931721320,8.23709008,167.98,167.97,2.9798]
[1729931721721,8.23709008,168.01,167.99,2.9794]
[1729931722821,8.23709008,168.01,168.0,2.9793]
[1729931725030,8.23709008,168.02,168.01,2.979]
[1729931725633,3.815,168.1,167.98,8.23709008]
[1729931725926,8.23709008,168.06,168.04,2.9784]
[1729931726329,8.23709008,168.06,168.01,12.55709008]
[1729931726632,8.23709008,168.06,168.04,2.9784]
[1729931735635,8.23709008,168.06,168.05,2.9782]
[1729931738239,8.23709008,168.08,168.05,2.9782]
[1729931739642,8.23709008,168.07,168.05,2.9782]
[1729931742745,8.23709008,168.07,168.02,8.23709008]
[1729931742746,8.23709008,168.07,168.06,2.9782]
[1729931744445,8.23709008,168.07,168.04,2.9785]
[1729931744746,8.23709008,168.05,168.04,2.9785]
[1729931749152,4.32,168.11,168.04,2.9785]
[1729931749352,8.23709008,168.05,168.04,2.9785]
[1729931765268,8.23709008,168.07,168.06,2.9782]
[1729931766771,8.23709008,168.1,168.04,8.23709008]
[1729931767469,8.23709008,168.1,168.05,1.48948898]
[1729931767865,8.23709008,168.1,168.04,8.23709008]
[1729931768064,8.23709008,168.1,168.05,1.4894522]
[1729931768259,8.23709008,168.1,168.07,2.9779]
[1729931768869,4.3,168.12,168.07,2.9779]
[1729931769066,8.23709008,168.09,168.07,2.9779]
[1729931769369,3.6527,168.15,168.11,2.9773]
[1729931769565,4.3,168.14,168.06,8.23709008]
[1729931769765,8.23709008,168.12,168.06,8.23709008]
[1729931770471,8.23709008,168.12,168.08,2.9778]
[1729931770772,8.23709008,168.1,168.08,2.9778]
[1729931771659,8.23709008,168.09,168.06,2.9781]
[1729931771965,8.23709008,168.07,168.03,143.41310132]
[1729931772171,8.23709008,168.04,168.03,143.41310132]
[1729931772369,8.23709008,168.04,168.03,148.03542385]
[1729931772565,8.23709008,168.04,168.03,151.01412385]
[1729931773070,8.23709008,168.04,168.03,7.60102253]
[1729931774070,8.23709008,168.04,168.03,4.46827512]
[1729931775573,8.23709008,168.04,168.03,7.60140936]
[1729931776472,8.23709008,168.04,168.03,2.9787]
[1729931777172,8.23709008,168.04,168.03,4.46834584]
[1729931777374,8.23709008,168.04,168.03,2.9787]
[1729931777963,8.23709008,168.04,168.03,4.46833424]
[1729931778576,8.23709008,168.04,168.03,2.9787]
[1729931778866,8.23709008,168.04,168.03,4.46830772]
[1729931779369,8.23709008,168.04,168.03,1.48960772]
[1729931779673,8.23709008,168.04,167.95,3.1343383]
[1729931779870,2.9791,168.01,167.96,3.1343383]
[1729931780073,22.20324692,168.08,167.95,2.98]
[1729931780074,8.23709008,167.97,167.95,2.98]
[1729931780268,8.23709008,167.96,167.84,2.5594]
[1729931780474,8.23709008,167.93,167.87,8.23709008]
[1729931780676,8.23709008,167.93,167.92,2.9807]
[1729931780874,8.23709008,167.93,167.92,6.11710475]
[1729931781974,8.23709008,167.93,167.92,2.9807]
[1729931782175,8.23709008,167.93,167.92,6.11712724]
[1729931782468,8.23709008,167.93,167.92,2.9807]
[1729931782676,8.23709008,167.93,167.85,4.3]
[1729931782883,8.23709008,167.89,167.86,3.1372014]
[1729931783085,8.23709008,167.89,167.87,3.1372014]
[1729931783269,8.23709008,167.89,167.85,12.53709008]
[1729931783476,8.23709008,167.89,167.87,2.9816]
[1729931783781,8.23709008,167.89,167.85,12.53709008]
[1729931783976,8.23709008,167.89,167.86,3.13584409]
[1729931784166,8.23709008,167.89,167.87,3.13584409]
[1729931784482,8.23709008,167.89,167.85,12.53709008]
[1729931784673,8.23709008,167.89,167.86,3.13417411]
[1729931784878,8.23709008,167.89,167.85,12.53709008]
[1729931785181,8.23709008,167.89,167.86,3.13416791]
[1729931785375,7.2804,167.94,167.88,2.9814]
[1729931785576,8.23709008,167.9,167.88,2.9814]
[1729931786773,8.23709008,167.9,167.85,3.13188733]
[1729931786976,8.23709008,167.9,167.84,15.09649008]
[1729931787173,8.23709008,167.9,167.85,3.13194864]
[1729931787481,8.23709008,167.9,167.84,15.09649008]
[1729931788274,8.23709008,167.9,167.88,2.9814]
[1729931790172,8.23709008,167.89,167.86,2.9816]
[1729931790579,8.23709008,167.89,167.83,151.77594771]
[1729931790783,8.23709008,167.87,167.85,2.9819]
[1729931792776,8.23709008,167.86,167.83,143.53885763]
[1729931792985,4.3,167.9,167.83,143.53885763]
[1729931792986,8.23709008,167.85,167.83,143.53885763]
[1729931794290,8.23709008,167.85,167.84,2.9821]
[1729931794687,8.23709008,167.85,167.83,143.53885763]
[1729931794887,8.23709008,167.85,167.81,2.9825]
[1729931795091,8.23709008,167.85,167.79,8.23709008]
[1729931796285,8.23709008,167.84,167.82,2.9824]
[1729931797087,8.23709008,167.85,167.82,2.9824]
[1729931803694,4.3,167.86,167.82,8.23709008]
[1729931803890,4.3,167.86,167.83,8.23709008]
[1729931804095,8.23709008,167.88,167.83,8.23709008]
[1729931804400,4.32,167.88,167.85,2.9818]
[1729931812304,12.55709008,167.88,167.85,2.9818]
[1729931816907,2.9807,167.93,167.88,2.9814]
[1729931817112,8.23709008,167.89,167.81,4.3]
[1729931817407,8.23709008,167.88,167.82,8.23709008]
[1729931818095,8.23709008,167.87,167.85,2.9819]
[1729931823713,8.23709008,167.86,167.78,8.23709008]
[1729931823913,8.23709008,167.83,167.78,8.23709008]
[1729931824211,8.23709008,167.83,167.81,2.9825]
[1729931834714,8.23709008,167.83,167.79,2.9829]
[1729931834914,8.23709008,167.83,167.78,8.23709008]
[1729931835611,8.23709008,167.83,167.82,2.9825]
[1729931843625,8.23709008,167.84,167.82,2.9825]
[1729931846130,3.03849433,167.89,167.76,7.42741795]
[1729931846131,3.03849433,167.89,167.8,8.23709008]
[1729931846326,225.4,168.15,167.85,8.23709008]
[1729931846327,4.3,167.93,167.85,8.23709008]
[1729931846521,8.23709008,167.91,167.87,8.23709008]
[1729931846726,194.28226843,167.94,167.81,3.761]
[1729931846727,12.53709008,167.93,167.88,8.23709008]
[1729931848329,12.53709008,167.93,167.9,2.981]
[1729931851536,8.23709008,167.91,167.87,2.9814]
[1729931851733,8.23709008,167.88,167.87,2.9814]
[1729931856435,7.2806,167.93,167.88,2.9813]
[1729931856736,8.23709008,167.9,167.88,2.9813]
[1729931857736,8.23709008,167.9,167.84,8.23709008]
[1729931857938,8.23709008,167.9,167.85,3.14321193]
[1729931858133,8.23709008,167.9,167.84,8.23709008]
[1729931858439,8.23709008,167.9,167.85,3.14363954]
[1729931858634,8.23709008,167.9,167.86,3.14363954]
[1729931858932,8.23709008,167.9,167.87,2.9814]
[1729931859133,8.23709008,167.9,167.84,8.23709008]
[1729931859438,8.23709008,167.9,167.88,2.9814]
[1729931866046,4.3,167.93,167.84,8.23709008]
[1729931866245,8.23709008,167.92,167.9,2.981]
[1729931866543,144.55935851,167.94,167.89,8.23709008]
[1729931866745,8.23709008,167.96,167.94,2.9802]
[1729931866947,4.3,167.97,167.94,2.9802]
[1729931866948,12.53709008,167.97,167.94,2.9802]
[1729931867244,8.23709008,167.96,167.94,2.9802]
[1729931872438,2.9791,168.01,167.92,8.23709008]
[1729931872646,8.23709008,167.97,167.92,8.23709008]
[1729931873047,8.23709008,168.0,167.95,8.23709008]
[1729931874346,8.23709008,168.0,167.97,2.9798]
[1729931879864,8.23709008,167.99,167.97,2.9798]
[1729931880064,8.23709008,167.98,167.94,2.9802]
[1729931880262,8.23709008,167.95,167.89,12.53709008]
[1729931880563,8.23709008,167.94,167.89,12.53709008]
[1729931881261,8.23709008,167.95,167.93,2.9803]
[1729931882163,4.3,167.98,167.93,2.9803]
[1729931882365,8.23709008,167.97,167.91,8.23709008]
[1729931882564,60.5438,168.03,167.95,8.23709008]
[1729931882763,4.3,168.0,167.96,8.23709008]
[1729931882966,8.23709008,168.01,167.96,8.23709008]
[1729931884262,8.23709008,168.01,167.97,2.9796]
[1729931888364,8.23709008,168.01,167.98,2.9796]
[1729931888964,8.23709008,168.0,167.98,2.9796]
[1729931893468,8.23709008,168.0,167.94,4.3]
[1729931893669,6.8838,168.03,167.95,2.9801]
[1729931893670,8.23709008,167.99,167.95,2.9801]
[1729931894367,8.23709008,167.99,167.93,8.23709008]
[1729931895165,8.23709008,167.99,167.96,2.9799]
[1729931902777,8.23709008,167.99,167.93,8.23709008]
[1729931902977,8.23709008,167.99,167.96,2.98]
[1729931905176,8.23709008,168.0,167.96,2.98]
[1729931905474,8.23709008,168.0,167.96,11.21709008]
[1729931909678,8.23709008,168.0,167.96,2.98]
[1729931910786,8.23709008,168.0,167.87,3.82]
[1729931910787,8.23709008,167.97,167.88,3.12894328]
[1729931910981,8.23709008,167.95,167.9,8.23709008]
[1729931911181,8.23709008,167.94,167.89,8.23709008]
[1729931912378,8.23709008,167.94,167.92,2.9806]
[1729931912682,8.23709008,167.95,167.92,2.9806]
[1729931913885,8.23709008,167.95,167.9,8.23709008]
[1729931914079,8.23709008,167.95,167.92,2.9806]
[1729931916584,8.23709008,167.95,167.9,8.23709008]
[1729931916791,8.23709008,167.97,167.94,2.9803]
[1729931917374,4.2963,168.01,167.95,2.9801]
[1729931917578,8.23709008,167.99,167.95,11.21719008]
[1729931921177,8.23709008,167.99,167.95,8.23709008]
[1729931921386,8.23709008,167.99,167.96,2.9799]
[1729931924087,2.9786,168.04,167.99,2.9793]
[1729931924388,8.23709008,168.03,167.99,2.9793]
[1729931924990,8.23709008,168.03,167.98,8.23709008]
[1729931925186,2.9786,168.04,167.98,2.9796]
[1729931925387,8.23709008,168.03,167.98,11.21669008]
[1729931928187,8.23709008,168.02,167.94,1.2635]
[1729931928389,4.3,168.05,167.95,1.49024753]
[1729931928390,8.23709008,167.98,167.95,1.49024753]
[1729931928699,8.23709008,167.98,167.92,12.53709008]
[1729931928997,8.23709008,167.96,167.93,2.9803]
[1729931930290,8.23709008,167.95,167.9,2.9809]
[1729931931091,8.23709008,167.95,167.9,8.23709008]
[1729931931292,8.23709008,167.96,167.93,2.9805]
[1729931933386,8.23709008,167.96,167.9,8.23709008]
[1729931933591,8.23709008,167.95,167.91,7.62077187]
[1729931933787,8.23709008,167.95,167.88,4.3]
[1729931933788,8.23709008,167.95,167.92,4.63997187]
[1729931934091,4.3,167.97,167.93,3.14934666]
[1729931934293,11.21739008,167.94,167.87,8.23709008]
[1729931934490,8.23709008,167.91,167.88,4.64049889]
[1729931934689,8.23709008,167.91,167.89,4.64049889]
[1729931934891,8.23709008,167.91,167.9,4.64049889]
[1729931936190,8.23709008,167.91,167.9,1.49080775]
[1729931936400,8.23709008,167.91,167.9,4.6403785]
[1729931937594,8.23709008,167.93,167.9,4.6403785]